{"text_format":"1","workbook":"xlsx","n_sheets":3,"sheets":["Tout CAS 2","Légende couleur","Avis CAS-2"],"not_rendered":{"charts":0,"images":0,"macros":1,"external_links":0,"defined_names":0,"comments":0,"pivot_tables":0},"unopened":[],"bounds":{"document_bytes":16777216,"sheet_cells":100000,"rows_first":2000,"rows_last":500,"rows_between":2000,"halvings":0,"cell_chars":16384,"cell_head_chars":4096},"cells_cut":0,"cells_raw":0,"read":"whole","date_system":"1900"}

{"sheet":"Tout CAS 2","index":0,"n_rows":99,"n_cols":38,"rows_kept":99,"cut":false,"hidden":false,"merged":[]}
["Titre","Prénom","Nom","CoProprio","Appel","Adresse","Ville","Code Postal","CivDe","CivA","Gen","Lien","Voie","Nbr","No envoi","BR inversé","1ere visite","2e visite","3e visite","Date AVIS envoyé","AVIS","Positionné","N/V","FERMÉ OK ","Fermé non-conforme","Modif OK","Visite prévue","Visite effectuée","Ok accepté","Refus ou aucun retour","À rappeler","Va rappeler","Innondations avril 2017","RDV annulé par direction","Observations","Notes","Lettre d'acceptation remise","Remboursement soumis"]
["Madame","Régina","Mills",{"$f":"A2&\" \"&C2","v":"Madame Mills"},"Mesdames","12, 79e Avenue Est","St-GlinGlin (Québec)","G1Q 1Q9",12,12,"Avenue EST",null,"79E",1,3,null,"2017-04-06",null,null,"Envoyé","X","F",null,null,null,null,null,"X",null,null,null,null,null,null,"sump pump raccordée au sanitaire"]
["Madame","Fée","Clochette",{"$f":"A3&\" \"&C3","v":"Madame Clochette"},"Madame","13, 79e Avenue Est","St-GlinGlin (Québec)","H0H 0H0",13,13,"Avenue EST",null,"79E",1,3,null,"2017-06-07",null,null,"Envoyé","","F",null,null,null,null,null,"X",null,null,null,null,null,null,"sump pump raccordée au sanitaire"]
["Monsieur","Succession Marie Disparue",null,"Monsieur ","Monsieur","14, 79e Avenue Est","St-GlinGlin (Québec)","G0Q 1D2",14,14,"Avenue EST",null,"79E",1,3,null,null,null,null,"","",""]
["Madame","Emma","Swan",{"$f":"A5&\" \"&C5","v":"Madame Swan"},"Madame, Monsieur","101, rue Gilbert-Gareau","St-Creucreu (Québec)","G1Q 1Q9",15,15,"Avenue EST",null,"79E",1,3,null,"2017-09-13",null,null,"Envoyé","","F",null,null,null,null,null,"X",null,null,null,null,null,null,"sump pump raccordée au sanitaire"]
["Monsieur","Mary-Margaret","Blanchard",{"$f":"A6&\" \"&C6","v":"Monsieur Blanchard"},"Monsieur","16, 79e Avenue Est","St-Creucreu (Québec)","H0H 0H0",16,16,"Avenue EST",null,"79E",1,3,null,"2017-04-03",null,null,"","","","X",null,null,null,null,"X",null,null,null,null,null,null,"Tout sous le plancher du sous-sol"]
["Madame","Ruby","Scarlett",{"$f":"A7&\" \"&C7","v":"Madame Scarlett"},"Madame, Monsieur","17, 79e Avenue Est","St-GlinGlin (Québec)","G0Q 1D2",17,17,"Avenue EST",null,"79E",1,3,null,"2017-03-31",null,null,"","","",null,null,null,null,null,"X",null,null,null,null,null,null,"Drain français BR à l'extérieur."]
["Madame","Cendrillon","Cendrillon",{"$f":"A8&\" \"&C8","v":"Madame Cendrillon"},"Madame","18, 79e Avenue Est","St-Creucreu (Québec)","G1Q 1Q9",18,18,"Avenue EST",null,"79E",1,3,null,null,null,null,"","",""]
["Monsieur","Belle","Bois Dormant","Monsieur Bois Dormant","Monsieur","19, 79e Avenue Est","St-GlinGlin (Québec)","H0H 0H0",19,19,"Avenue EST",null,"79E",1,3,null,"2017-03-22",null,null,"","","",null,null,"X",null,null,"X",null,null,null,null,null,null,"Drain français BR à l'extérieur."]
["Madame","Blanche","Neige","Madame Neige","Madame, Monsieur","1172, rue Vianney","St-GlinGlin (Québec)","G0Q 1D2",1072,1072,"RUE",null,"VIANNEY",1,3,null,null,null,null,"","X",""]
["Monsieur","Trucbine","Gold","Monsieur Gold","Monsieur","1123, rue Vianney","St-GlinGlin (Québec)","G1Q 1Q9",1123,1123,"RUE",null,"VIANNEY",1,3,null,"2017-03-22",null,null,"","","",null,"X",null,null,null,"X",null,null,null,null,null,null,"Ødrain fr./Øsump pump/Øgrav."]
["Madame","Kilian","Jones","Madame Jones","Madame, Monsieur","1145, rue Vianney","St-Creucreu (Québec)","H0H 0H0",1145,1145,"RUE",null,"VIANNEY",1,3,null,"2017-04-06",null,null,"","x","",null,"X",null,null,null,"X",null,null,null,null,null,null,"Pompe BR au pluvial"]
["Madame","Fraisinette","Des Baies","Madame Des Baies","Madame, Monsieur","1146, rue Vianney","St-Creucreu (Québec)","G0Q 1D2",1146,1146,"RUE",null,"VIANNEY",1,3,null,"2017-03-17",null,null,"Envoyé","","F",null,null,null,null,null,"X",null,null,null,null,null,null,"Grav./pompe BR au sanitaire"]
["Madame","Jiminy","Criquet","Madame Criquet","Madame, Monsieur","1147, rue Vianney","St-GlinGlin (Québec)","G1Q 1Q9",1147,1147,"RUE",null,"VIANNEY",1,3,null,"2017-03-22",null,null,"Envoyé","","F",null,null,null,null,null,"X",null,null,null,null,null,null,"Grav./pompe BR au sanitaire"]
["Monsieur","Eva","Cassidy","Monsieur Cassidy","Monsieur","1148, rue Vianney","St-Creucreu (Québec)","H0H 0H0",1148,1148,"RUE",null,"VIANNEY",1,3,null,"2017-03-05",null,null,"Envoyé","","F",null,null,null,"X",null,"X",null,null,null,null,null,null,"Pompe à installer et BR au pluvial.","2e RDV 31/07","X"]
["Madame","Lucy","Mills","Madame Mills","Madame, Monsieur","1149, rue Vianney","St-GlinGlin (Québec)","G0Q 1D2",1149,1149,"RUE",null,"VIANNEY",1,3,null,"2017-04-04",null,null,"Envoyé","","F",null,null,null,null,null,"X",null,null,null,null,null,null,"sump pump raccordée au sanitaire"]
["Monsieur","Jacinda","Des Loups","Monsieur Des Loups","Monsieur","1150, rue Vianney","St-GlinGlin (Québec)","G1Q 1Q9",1150,1150,"RUE",null,"VIANNEY",1,3,null,"2017-03-23",null,null,"","","",null,"X",null,null,null,"X",null,null,null,null,null,null,"Sump pump BR au pluvial."]
["Monsieur","Capitaine","Crochet","Monsieur Crochet","Monsieur","1151, rue Vianney","St-GlinGlin (Québec)","H0H 0H0",1151,1151,"RUE",null,"VIANNEY",1,3,null,null,null,null,"","",""]
["Monsieur","Tenebreux","Rumplestiltskin","Monsieur Rumplestiltskin","Monsieur","1152, rue Vianney","St-Creucreu (Québec)","G0Q 1D2",1152,1152,"RUE",null,"VIANNEY",1,3,null,null,null,null,"","X",""]
["Madame","August","Pinocchio","Madame Pinocchio","Madame, Monsieur","1153, rue Vianney","St-Creucreu (Québec)","G1Q 1Q9",1153,1153,"RUE",null,"VIANNEY",1,3,null,"2017-04-07",null,null,"","","",null,"X",null,null,null,"X",null,null,null,null,null,null,"Sump pump BR au pluvial."]
["Madame","Lady","Trémaine","Madame Trémaine","Madame, Monsieur","1154, rue Vianney","St-GlinGlin (Québec)","H0H 0H0",1154,1154,"RUE",null,"VIANNEY",1,3,null,"2017-03-27",null,null,"","","",null,"X",null,null,null,"X",null,null,null,null,null,null,"Sump pump BR au pluvial."]
["Madame","Archie","Hopper","Madame Hopper","Madame, Monsieur","1155, rue Vianney","St-Creucreu (Québec)","G0Q 1D2",1155,1155,"RUE",null,"VIANNEY",1,3,null,null,null,null,"","",""]
["Madame","Neal","Baelfire","Madame Baelfire","Madame, Monsieur","1156, rue Vianney","St-GlinGlin (Québec)","G1Q 1Q9",1156,1156,"RUE",null,"VIANNEY",1,3,null,"2017-03-29",null,null,"","","",null,null,"X",null,null,"X",null,null,null,null,null,null,"Sump pump BR au pluvial."]
["Madame","Robin","Des Bois","Madame Des Bois","Madame, Monsieur","1157, rue Vianney","St-GlinGlin (Québec)","H0H 0H0",1157,1157,"RUE",null,"VIANNEY",1,3,null,"2017-04-05",null,null,"","x","",null,"X",null,null,null,"X",null,null,null,null,null,null,"Sump pump BR au pluvial."]
["Madame","David","Nolan","Madame Nolan","Madame, Monsieur","1158, rue Vianney","St-GlinGlin (Québec)","G0Q 1D2",1158,1158,"RUE",null,"VIANNEY",1,3,null,null,null,null,"","",""]
["Madame","Régina","Mills","Madame Mills","Madame, Monsieur","1160, rue Vianney","St-Creucreu (Québec)","G1Q 1Q9",1160,1160,"RUE",null,"VIANNEY",1,3,null,null,null,null,"","",""]
["Madame","Fée","Clochette","Madame Clochette","Madame, Monsieur","1162, rue Vianney","St-Creucreu (Québec)","H0H 0H0",1162,1162,"RUE",null,"VIANNEY",1,3,null,null,null,null,"","",""]
["Madame","Succession Marie Disparue",null,"Madame ","Madame, Monsieur","1164, rue Vianney","St-GlinGlin (Québec)","G0Q 1D2",1164,1164,"RUE",null,"VIANNEY",1,3,null,"2017-03-24",null,null,"","","",null,"X",null,null,null,"X",null,null,null,null,null,null,"Sump pump BR au pluvial."]
["Madame","Emma","Swan","Madame Swan","Madame","1166, rue Vianney","St-Creucreu (Québec)","G1Q 1Q9",1166,1166,"RUE",null,"VIANNEY",1,3,null,null,null,null,"","",""]
["Madame","Mary-Margaret","Blanchard","Madame Blanchard","Madame","1168, rue Vianney","St-GlinGlin (Québec)","H0H 0H0",1168,1168,"RUE",null,"VIANNEY",1,3,null,null,null,null,"","","",null,"voir note","514 123-8877",null,null,null,null,"X",null,null,null,null,"Rappeler pour RDV / était le 27/04/2017 // Laissé mess boite vocale le 14 juin.  2e tentative 18 aout j'ai essayé de rejoindre mais boite/v. pleine lg 12 sept. M. Pomerleau (bougnon) dit qu'il va demander proprio d'appeler car elle sera à la maison lundi prochain..  aucun suivi tel qu'entendu avec Denis car trop compliqué on ferme le dossier comme un refus","M. Pomerleau ne s'est pas présenté RDV du 8 juin"]
["Madame","Ruby","Scarlett","Madame Scarlett","Madame","1170, rue Vianney","St-GlinGlin (Québec)","G0Q 1D2",1170,1170,"RUE",null,"VIANNEY",1,3,null,null,null,null,"","","",null,null,null,null,null,null,null,null,"X",null,null,null,"Rappeler pour RDV"]
["Madame","Cendrillon","Cendrillon","Madame Cendrillon","Madame, Monsieur","1171, rue Vianney","St-GlinGlin (Québec)","G1Q 1Q9",1171,1171,"RUE",null,"VIANNEY",1,3,null,null,null,null,"","",""]
["Madame","Belle","Bois Dormant","Madame Bois Dormant","Madame, Monsieur","1173, rue Vianney","St-Creucreu (Québec)","H0H 0H0",1173,1173,"RUE",null,"VIANNEY",1,3,null,null,null,null,"","",""]
["Monsieur","Blanche","Neige","Monsieur Neige","Monsieur","1174, rue Vianney","St-Creucreu (Québec)","G0Q 1D2",1174,1174,"RUE",null,"VIANNEY",1,3,null,null,null,null,"","",""]
["Madame","Trucbine","Gold","Madame Gold","Madame, Monsieur","1175, rue Vianney","St-GlinGlin (Québec)","G1Q 1Q9",1175,1175,"RUE",null,"VIANNEY",1,3,null,"2017-04-05",null,null,"","","","X",null,null,null,null,"X",null,null,null,null,null,null,"Tout sous plancher / Ø bassin"]
["Monsieur","Kilian","Jones","Monsieur Jones","Monsieur","1176, rue Vianney","St-Creucreu (Québec)","H0H 0H0",1176,1176,"RUE",null,"VIANNEY",1,3,null,null,null,null,"","",""]
["Madame","Fraisinette","Des Baies","Madame Des Baies","Madame, Monsieur","1177, rue Vianney","St-GlinGlin (Québec)","G0Q 1D2",1177,1177,"RUE",null,"VIANNEY",1,3,null,"2017-03-29",null,null,"","","",null,null,null,null,null,"X",null,null,null,null,null,null,"*TEST DE COULEUR À FAIRE","J'ai laissé la feuille à Denis pour qu'il complète l'info du test de couleur qui a été fait"]
["Madame","Jiminy","Criquet","Madame Criquet","Madame, Monsieur","1178, rue Vianney","St-GlinGlin (Québec)","G1Q 1Q9",1178,1178,"RUE",null,"VIANNEY",1,3,null,null,null,null,"","","",null,null,null,null,null,null,null,null,"X",null,null,null,"RDV 6 avril. Citoyen avisé règlements 1420 et 1450. citoyen dit avoir bassin sous laveuse-sécheuse sous-sol. Il va faire place et rappeler pour RDV. 12 sept Denis a parlé avec M. Harvey. Doit le faire et ns rappeler d'ici 1 semaine. 18 oct. J'ai rappelé Mme Deslauriers et toujours pas fait. Nous demande encore 2 semaines et va ns rappeler. prochain suivi le 2 nov. 2017"]
["Madame","Eva","Cassidy","Madame Cassidy","Madame, Monsieur","1179, rue Vianney","St-GlinGlin (Québec)","H0H 0H0",1179,1179,"RUE",null,"VIANNEY",1,3,null,null,null,null,"","",""]
["Madame","Lucy","Mills","Madame Mills","Madame, Monsieur","1180, rue Vianney","St-Creucreu (Québec)","G0Q 1D2",1180,1180,"RUE",null,"VIANNEY",1,3,null,"2017-04-04",null,null,"Envoyé","","F",null,null,null,null,null,"X",null,null,null,null,null,null,"Pompe à installer et BR au pluvial."]
["Madame","Jacinda","Des Loups","Madame Des Loups","Madame, Monsieur","1183, rue Vianney","St-Creucreu (Québec)","G1Q 1Q9",1183,1183,"RUE",null,"VIANNEY",1,3,null,"2017-04-11",null,null,"","","","X",null,null,null,null,"X",null,null,null,null,null,null,"Tout sous plancher / Ø bassin"]
["Monsieur","Capitaine","Crochet","Monsieur Crochet","Monsieur","1185, rue Vianney","St-GlinGlin (Québec)","H0H 0H0",1185,1187,"RUE",null,"VIANNEY",1,3,null,null,null,null,"","",""]
["Madame","Tenebreux","Rumplestiltskin","Madame Rumplestiltskin","Mesdames","1188, rue Vianney","St-Creucreu (Québec)","G0Q 1D2",1188,1188,"RUE",null,"VIANNEY",1,3,null,null,null,null,"","",""]
["Madame","August","Pinocchio","Madame Pinocchio","Madame","1189, rue Vianney","St-GlinGlin (Québec)","G1Q 1Q9",1189,1189,"RUE",null,"VIANNEY",1,3,null,null,null,null,"","",""]
["Madame","Lady","Trémaine","Madame Trémaine","Madame","1190, rue Vianney","St-GlinGlin (Québec)","H0H 0H0",1190,1190,"RUE",null,"VIANNEY",1,3,null,null,null,null,"","",""]
["Madame","Archie","Hopper","Madame Hopper","Madame, Monsieur","1191, rue Vianney","St-GlinGlin (Québec)","G0Q 1D2",1191,1191,"RUE",null,"VIANNEY",1,3,null,null,null,null,"","",""]
["Madame","Neal","Baelfire","Madame Baelfire","Madame, Monsieur","1192, rue Vianney","St-Creucreu (Québec)","G1Q 1Q9",1192,1192,"RUE",null,"VIANNEY",1,3,null,"2017-04-19",null,null,"Envoyé","","F",null,null,null,null,null,"X",null,null,null,null,null,null,"sump pump raccordée au sanitaire"]
["Madame","Robin","Des Bois","Madame Des Bois","Madame","1193, rue Vianney","St-Creucreu (Québec)","H0H 0H0",1193,1193,"RUE",null,"VIANNEY",1,3,null,null,null,null,"","",""]
["Monsieur","David","Nolan","Monsieur Nolan","Monsieur","1194, rue Vianney","St-GlinGlin (Québec)","G0Q 1D2",1194,1194,"RUE",null,"VIANNEY",1,3,null,null,null,null,"","",""]
["Madame","Régina","Mills","Madame Mills","Madame, Monsieur","13200, rue Louis-Joseph-Papineau","St-Creucreu (Québec)","G1Q 1Q9",1196,1196,"RUE",null,"VIANNEY",1,3,null,null,null,null,"","",""]
["Monsieur","Fée","Clochette","Monsieur Clochette","Monsieur","1198, rue Vianney","St-GlinGlin (Québec)","H0H 0H0",1198,1198,"RUE",null,"VIANNEY",1,3,null,null,null,null,"","","",null,null,null,null,null,null,null,null,"X",null,null,null,"Rappeler pour RDV"]
["Madame","Succession Marie Disparue",null,"Madame ","Madame, Monsieur","1200, rue Vianney","St-GlinGlin (Québec)","G0Q 1D2",1200,1200,"RUE",null,"VIANNEY",1,3,null,null,null,null,"","",""]
["Madame","Emma","Swan","Madame Swan","Madame, Monsieur","31, rue Hubert-Gratton","St-GlinGlin (Québec)","G1Q 1Q9",1201,1201,"RUE",null,"VIANNEY",1,3,null,null,null,null,"","",""]
["Monsieur","Mary-Margaret","Blanchard","Monsieur Blanchard","Monsieur","1202, rue Vianney","St-Creucreu (Québec)","H0H 0H0",1202,1202,"RUE",null,"VIANNEY",1,3,null,null,null,null,"","",""]
["Madame","Ruby","Scarlett","Madame Scarlett","Madame, Monsieur","1203, rue Vianney","St-Creucreu (Québec)","G0Q 1D2",1203,1203,"RUE",null,"VIANNEY",1,3,null,"2017-04-11",null,null,"","","","X",null,null,null,null,"X",null,null,null,null,null,null,"Tout sous plancher / Ø bassin"]
["Monsieur","Cendrillon","Cendrillon","Monsieur Cendrillon","Monsieur","1204, rue Vianney","St-GlinGlin (Québec)","G1Q 1Q9",1204,1204,"RUE",null,"VIANNEY",1,3,null,null,null,null,"","",""]
["Madame","Belle","Bois Dormant","Madame Bois Dormant","Madame, Monsieur","1205, rue Vianney","St-Creucreu (Québec)","H0H 0H0",1205,1205,"RUE",null,"VIANNEY",1,3,null,"2017-03-27",null,null,"","","",null,"X",null,null,null,"X",null,null,null,null,null,null,"Ø de drain français selon citoyen"]
["Madame","Blanche","Neige","Madame Neige","Madame, Monsieur","1206, rue Vianney","St-GlinGlin (Québec)","G0Q 1D2",1206,1206,"RUE",null,"VIANNEY",1,3,null,"2017-04-04",null,null,"","","",null,"X",null,null,null,"X",null,null,null,null,null,null,"Sump pump BR au pluvial."]
["Madame","Trucbine","Gold","Madame Gold","Madame, Monsieur","1207, rue Vianney","St-GlinGlin (Québec)","G1Q 1Q9",1207,1207,"RUE",null,"VIANNEY",1,3,null,null,null,null,"","",""]
["Madame","Kilian","Jones","Madame Jones","Madame, Monsieur","A2-1, 20e Avenue Ouest","St-GlinGlin (Québec)","H0H 0H0",1,1,"Avenue OUEST",null,"20E",1,4,null,null,null,null,"","",""]
["Madame","Fraisinette","Des Baies","Madame Des Baies","Madame","4, 20e Avenue Ouest","St-Creucreu (Québec)","G0Q 1D2",2,4,"Avenue OUEST",null,"20E",1,4,null,null,null,null,"","",""]
["Madame","Jiminy","Criquet","Madame Criquet","Madame","1337, boul. Iberville C.P.200 10","St-Creucreu (Québec)","G1Q 1Q9",2,4,"Avenue OUEST",null,"20E",1,4,null,null,null,null,"","",""]
["Madame","Eva","Cassidy","Madame Cassidy","Mesdames","3, 20e Avenue Ouest","St-GlinGlin (Québec)","H0H 0H0",3,3,"Avenue OUEST",null,"20E",1,4,null,null,null,null,"","",""]
["Monsieur","Lucy","Mills","Monsieur Mills","Monsieur","7, 20e Avenue Ouest","St-Creucreu (Québec)","G0Q 1D2",5,7,"Avenue OUEST",null,"20E",1,4,null,null,null,null,"","",""]
["Madame","Jacinda","Des Loups","Madame Des Loups","Madame, Monsieur","1406, ave Vendôme","St-GlinGlin (Québec)","G1Q 1Q9",6,8,"Avenue OUEST",null,"20E",1,4,null,"2017-05-23",null,null,"","","","X",null,null,null,null,"X",null,null,null,null,null,null,"Tout sous plancher / Ø bassin"]
["Madame","Capitaine","Crochet","Madame Crochet","Madame","9, 20e Avenue Ouest","St-GlinGlin (Québec)","H0H 0H0",9,11,"Avenue OUEST",null,"20E",1,4,null,null,null,null,"","",""]
["Monsieur","Tenebreux","Rumplestiltskin","Monsieur Rumplestiltskin","Monsieur","12, 20e Avenue Ouest","St-GlinGlin (Québec)","G0Q 1D2",10,12,"Avenue OUEST",null,"20E",1,4,null,"2017-06-14",null,null,"","","",null,null,"X",null,null,"X",null,null,null,null,null,null,"Drain français BR à l'extérieur."]
[null,"August","Pinocchio"," Pinocchio","Madame, Monsieur","10, rue de la Picardie","St-Creucreu (Québec)","G1Q 1Q9",13,15,"Avenue OUEST",null,"20E",1,4,null,null,null,null,"","",""]
["Madame","Lady","Trémaine","Madame Trémaine","Madame","16, 20e Avenue Ouest","St-Creucreu (Québec)","H0H 0H0",14,16,"Avenue OUEST",null,"20E",1,4,null,"2017-06-16",null,null,"","","",null,null,"X",null,null,"X",null,null,null,null,null,null,"Drain français BR à l'extérieur."]
["Madame","Archie","Hopper","Madame Hopper","Madame","17, 20e Avenue Ouest","St-GlinGlin (Québec)","G0Q 1D2",17,19,"Avenue OUEST",null,"20E",1,4,null,null,null,null,"","",""]
["Monsieur","Neal","Baelfire","Monsieur Baelfire","Monsieur","11, 109e Avenue Ouest","St-Creucreu (Québec)","G1Q 1Q9",18,20,"Avenue OUEST",null,"20E",1,4,null,null,null,null,"","X",""]
["Madame","Robin","Des Bois",{"$f":"A72&\" \"&C72","v":"Madame Des Bois"},"Madame, Monsieur","23, 20e Avenue Ouest","St-GlinGlin (Québec)","H0H 0H0",21,23,"Avenue OUEST",null,"20E",1,4,null,"2017-05-29",null,null,"","","",null,null,"X",null,null,"X",null,null,null,null,null,null,"Drain français BR à l'extérieur."]
["Monsieur","David","Nolan","Monsieur Nolan","Monsieur","24, 20e Avenue Ouest","St-GlinGlin (Québec)","G0Q 1D2",22,24,"Avenue OUEST",null,"20E",1,4,null,null,null,null,"","",""]
["Monsieur","Régina","Mills","Monsieur Mills","Monsieur","1268, ch. Val d'Espoir C.P. 131","St-GlinGlin (Québec)","G1Q 1Q9",25,27,"Avenue OUEST",null,"20E",1,4,null,"2017-06-15",null,null,"","","",null,null,"X",null,null,"X",null,null,null,null,null,null,"Drain français BR à l'extérieur."]
["Monsieur","Fée","Clochette","Monsieur Clochette","Monsieur","140, de la Ragueneau","St-Creucreu (Québec)","H0H 0H0",26,28,"Avenue OUEST",null,"20E",1,4,null,null,null,null,"","",""]
["Madame","Succession Marie Disparue",null,"Madame ","Madame, Monsieur","31, 20e Avenue Ouest","St-Creucreu (Québec)","G0Q 1D2",29,31,"Avenue OUEST",null,"20E",1,4,null,null,null,null,"","",""]
[null,"Emma","Swan"," Swan",null,"4800, rue René-Coty","St-GlinGlin (Québec)","G1Q 1Q9",30,32,"Avenue OUEST",null,"20E",1,4,null,null,null,null,"","",""]
["Madame","Mary-Margaret","Blanchard","Madame Blanchard","Madame","283, rue de Jerez","St-Creucreu (Québec)","H0H 0H0",33,35,"Avenue OUEST",null,"20E",1,4,null,null,null,null,"","x",""]
["Monsieur","Ruby","Scarlett","Monsieur Scarlett","Monsieur","3995, ave de la Renaissance","St-GlinGlin (Québec)","G0Q 1D2",34,36,"Avenue OUEST",null,"20E",1,4,null,"2017-06-06",null,null,"",null,"",null,null,"X",null,null,"X",null,null,null,null,null,null,"Drain français BR à l'extérieur."]
["Monsieur","Cendrillon","Cendrillon","Monsieur Cendrillon","Monsieur","37, 20e Avenue Ouest","St-GlinGlin (Québec)","G1Q 1Q9",37,39,"Avenue OUEST",null,"20E",1,4,null,null,null,null,"","",""]
["Monsieur","Belle","Bois Dormant","Monsieur Bois Dormant","Monsieur","40, 20e Avenue Ouest","St-GlinGlin (Québec)","H0H 0H0",38,40,"Avenue OUEST",null,"20E",1,4,null,null,null,null,"","",""]
["Monsieur","Blanche","Neige","Monsieur Neige","Monsieur","42, 20e Avenue Ouest","St-Creucreu (Québec)","G0Q 1D2",42,44,"Avenue OUEST",null,"20E",1,4,null,"2017-05-23",null,null,"","","",null,null,"X",null,null,"X",null,null,null,null,null,null,"Drain français BR à l'extérieur."]
[null,"Trucbine","Gold"," Gold","Madame, Monsieur","219, rue Corona","St-Creucreu (Québec)","G1Q 1Q9",46,48,"Avenue OUEST",null,"20E",1,4,null,null,null,null,"","",""]
["Madame","Kilian","Jones","Madame Jones","Madame, Monsieur","49, 20e Avenue Ouest","St-GlinGlin (Québec)","H0H 0H0",49,51,"Avenue OUEST",null,"20E",1,4,null,null,null,null,"","",""]
["Monsieur","Fraisinette","Des Baies","Monsieur Des Baies","Monsieur","50, 20e Avenue Ouest","St-Creucreu (Québec)","G0Q 1D2",50,52,"Avenue OUEST",null,"20E",1,4,null,"2017-05-31",null,null,"","","",null,null,"X",null,null,"X",null,null,null,null,null,null,"Drain français BR à l'extérieur."]
["Monsieur","Jiminy","Criquet","Monsieur Criquet","Monsieur","1022, rue Carole","St-GlinGlin (Québec)","G1Q 1Q9",53,55,"Avenue OUEST",null,"20E",1,4,null,"2017-04-19",null,null,"","","",null,null,"X",null,null,"X",null,null,null,null,null,null,"Drain français BR à l'extérieur."]
["Madame","Eva","Cassidy","Madame Cassidy","Madame","309-5000, boul. l'Assomption","St-GlinGlin (Québec)","H0H 0H0",54,56,"Avenue OUEST",null,"20E",1,4,null,null,null,null,"","",""]
["Madame","Lucy","Mills","Madame Mills","Madame, Monsieur","57, 20e Avenue Ouest","St-GlinGlin (Québec)","G0Q 1D2",57,59,"Avenue OUEST",null,"20E",1,4,null,null,null,null,"","",""]
["Monsieur","Jacinda","Des Loups","Monsieur Des Loups","Monsieur","90, rue Sarah-Garth","St-Creucreu (Québec)","G1Q 1Q9",58,60,"Avenue OUEST",null,"20E",1,4,null,null,null,null,"","X",""]
["Madame","Capitaine","Crochet","Madame Crochet","Madame, Monsieur","63, 20e Avenue Ouest","St-Creucreu (Québec)","H0H 0H0",61,63,"Avenue OUEST",null,"20E",1,4,null,"2017-05-30",null,null,"","","",null,null,"X",null,null,"X",null,null,null,null,null,null,"Drain français BR à l'extérieur."]
["Monsieur","Tenebreux","Rumplestiltskin","Monsieur Rumplestiltskin","Monsieur","895, rue Bélair","St-GlinGlin (Québec)","G0Q 1D2",62,64,"Avenue OUEST",null,"20E",1,4,null,"2017-06-13",null,null,"","","",null,null,"X",null,null,"X",null,null,null,null,null,null,"Drain français BR à l'extérieur."]
["Madame","August","Pinocchio","Madame Pinocchio","Madame, Monsieur","65, 20e Avenue Ouest","St-Creucreu (Québec)","G1Q 1Q9",65,67,"Avenue OUEST",null,"20E",1,4,null,null,null,null,"","",""]
["Monsieur","Lady","Trémaine","Monsieur Trémaine","Monsieur","66, 20e Avenue Ouest","St-GlinGlin (Québec)","H0H 0H0",66,68,"Avenue OUEST",null,"20E",1,4,null,null,null,null,"","",""]
["Madame","Archie","Hopper","Madame Hopper","Mesdames","928, rue des Giroflées","St-GlinGlin (Québec)","G0Q 1D2",69,71,"Avenue OUEST",null,"20E",1,4,null,null,null,null,"","",""]
["Monsieur","Neal","Baelfire","Monsieur Baelfire","Monsieur","72, 20e Avenue Ouest","St-GlinGlin (Québec)","G1Q 1Q9",70,72,"Avenue OUEST",null,"20E",1,4,null,null,null,null,"","X",""]
["Monsieur","Robin","Des Bois","Monsieur Des Bois","Monsieur","349, rue du bord de L'eau","St-Creucreu (Québec)","H0H 0H0",73,75,"Avenue OUEST",null,"20E",1,4,null,null,null,null,"","",""]
["Madame","David","Nolan","Madame Nolan","Madame, Monsieur","96, 20e Avenue Ouest","St-Creucreu (Québec)","G0Q 1D2",74,76,"Avenue OUEST",null,"20E",1,4,null,null,null,null,"","",""]
["Monsieur","Robin","Des Bois","Monsieur Des Bois","Monsieur","77, 20e Avenue Ouest","St-GlinGlin (Québec)","G1Q 1Q9",77,79,"Avenue OUEST",null,"20E",1,4,null,"2017-04-20",null,null,"","","",null,null,"X",null,null,"X",null,null,null,null,null,null,"Drain français BR à l'extérieur."]
["Madame","David","Nolan","Madame Nolan","Madame, Monsieur","80, 20e Avenue Ouest","St-Creucreu (Québec)","H0H 0H0",78,80,"Avenue OUEST",null,"20E",1,4,null,"2017-05-24",null,null,"","","",null,null,"X",null,null,"X",null,null,null,null,null,null,"Drain français BR à l'extérieur."]

{"sheet":"Légende couleur","index":1,"n_rows":18,"n_cols":3,"rows_kept":18,"cut":false,"hidden":false,"merged":[[15,2,15,3]]}
[]
[]
[]
[null,null,"Visite effectuée"]
[]
[null,null,"Refus de visite ou appels répétés aucun retour du citoyen / on laisse tombé la visite"]
[]
[null,null,"Visite prévue à l'agenda"]
[]
[null,null,"OK Accepté"]
[]
[null,null,"À rappeler "]
[]
[null,null,"Ils vont rappeler"]
[]
[null,null,"Inondations avril 2017"]
[]
[null,null,"RDV Annulé par la direction "]

{"sheet":"Avis CAS-2","index":2,"n_rows":1,"n_cols":38,"rows_kept":1,"cut":false,"hidden":false,"merged":[]}
["Titre","Prénom","Nom","CoProprio","Appel","Adresse","Ville","Code Postal","CivDe","CivA","Gen","Lien","Voie","Nbr","No envoi","BR inversé","1ere visite","2e visite","3e visite","Date AVIS envoyé","AVIS","Positionné","N/V","FERMÉ OK ","Fermé non-conforme","Modif OK","Visite prévue","Visite effectuée","Ok accepté","Refus ou aucun retour","À rappeler","Va rappeler","Innondations avril 2017","RDV annulé par direction","Observations","Notes","Lettre d'acceptation remise","Remboursement soumis"]